bitfinex-derivatives/quotes_BTCF0:USTF0_20250417
["timestamp","ask_amount","ask_price","bid_price","bid_amount"]
[1744899440471,0.0447,84140.0,84139.0,0.37328221]
[1744899441068,0.0447,84140.0,84139.0,0.37228221]
[1744899441270,0.1635709,84140.0,84139.0,0.37228221]
[1744899441673,0.0447,84140.0,84139.0,0.37228221]
[1744899441972,0.00017827,84146.0,84145.0,0.1188638]
[1744899442155,0.00017827,84146.0,84145.0,0.32647371]
[1744899442359,0.00017827,84146.0,84145.0,0.1188638]
[1744899442563,0.11904067,84146.0,84145.0,0.1188638]
[1744899442757,0.11904067,84146.0,84145.0,0.1633638]
[1744899442962,0.11904067,84146.0,84145.0,0.1178638]
[1744899443163,0.1783056,84142.0,84141.0,0.118869]
[1744899443356,0.1188709,84140.0,84139.0,0.0624354]
[1744899443961,0.1636709,84140.0,84139.0,0.1069354]
[1744899444160,0.1636709,84140.0,84139.0,0.1040154]
[1744899444773,0.1636709,84140.0,84139.0,0.1060154]
[1744899444958,0.1636709,84140.0,84139.0,0.0615154]
[1744899445875,0.1636709,84140.0,84139.0,0.0614354]
[1744899446376,0.1636709,84140.0,84139.0,0.0615154]
[1744899446571,0.1636709,84140.0,84139.0,0.00208]
[1744899446876,0.1636709,84140.0,84139.0,0.1208723]
[1744899447075,0.1636709,84140.0,84139.0,0.1209523]
[1744899447370,0.1636709,84140.0,84139.0,0.1189523]
[1744899447575,0.1636709,84140.0,84139.0,0.1209523]
[1744899448174,0.1636709,84140.0,84139.0,0.00208]
[1744899449075,0.1636709,84140.0,84139.0,0.1189523]
[1744899449277,0.1636709,84140.0,84139.0,0.1209523]
[1744899449475,0.1636709,84140.0,84139.0,0.1671523]
[1744899449677,0.1636709,84140.0,84139.0,0.1651523]
[1744899449881,0.0448,84140.0,84139.0,0.1671523]
[1744899450080,0.1636709,84140.0,84139.0,0.1671523]
[1744899450872,0.1636709,84140.0,84139.0,0.1651523]
[1744899451077,0.1646709,84140.0,84139.0,0.1671523]
[1744899451478,0.2088709,84140.0,84139.0,0.1671523]
[1744899452684,0.2078709,84140.0,84139.0,0.1651523]
[1744899452981,0.2078709,84140.0,84139.0,0.1671523]
[1744899453368,0.2078709,84140.0,84139.0,0.1651523]
[1744899453566,0.2078709,84140.0,84139.0,0.1671523]
[1744899454579,0.2078709,84140.0,84139.0,0.1651523]
[1744899454882,0.2088709,84140.0,84139.0,0.1671523]
[1744899456786,0.2088709,84140.0,84139.0,0.1651523]
[1744899456787,0.2078709,84140.0,84139.0,0.1651523]
[1744899456985,0.2088709,84140.0,84139.0,0.1671523]
[1744899463995,0.2088709,84140.0,84139.0,0.37476221]
[1744899464896,0.11904267,84146.0,84145.0,0.1188638]
[1744899465080,0.11904267,84146.0,84145.0,0.32647371]
[1744899465282,0.20794267,84146.0,84145.0,0.32647371]
[1744899465685,0.20794267,84146.0,84145.0,0.37297371]
[1744899466087,0.08907827,84146.0,84145.0,0.37297371]
[1744899466288,0.00017827,84146.0,84145.0,0.41957371]
[1744899467098,0.00117827,84146.0,84145.0,0.42257371]
[1744899467698,0.12004067,84146.0,84145.0,0.42257371]
[1744899467898,0.00117827,84146.0,84145.0,0.42257371]
[1744899469001,0.12004067,84146.0,84145.0,0.42257371]
[1744899469196,0.11904067,84146.0,84145.0,0.41957371]
[1744899469498,0.20914067,84146.0,84145.0,0.0515]
[1744899469703,0.25304067,84146.0,84145.0,0.05158]
[1744899469909,0.25304067,84146.0,84145.0,0.05058]
[1744899470105,0.25304067,84146.0,84145.0,0.04958]
[1744899470714,0.25204067,84146.0,84145.0,0.1654438]
[1744899470915,0.25204067,84146.0,84145.0,0.1674438]
[1744899472120,0.13317827,84146.0,84145.0,0.1674438]
[1744899472414,0.25204067,84146.0,84145.0,0.1674438]
[1744899472617,0.25204067,84146.0,84145.0,0.1654438]
[1744899472812,0.25304067,84146.0,84145.0,0.1674438]
[1744899473413,0.13417827,84146.0,84145.0,0.1674438]
[1744899473612,0.04647827,84146.0,84145.0,0.1674438]
[1744899473814,0.00017827,84146.0,84145.0,0.41565371]
[1744899474011,0.00117827,84146.0,84145.0,0.41865371]
[1744899474915,0.00117827,84146.0,84145.0,0.37605371]
[1744899475316,0.08917827,84146.0,84145.0,0.37605371]
[1744899475517,0.08917827,84146.0,84145.0,0.37597371]
[1744899475712,0.08917827,84146.0,84145.0,0.41845371]
[1744899476115,0.08917827,84146.0,84145.0,0.37705371]
[1744899476517,0.20804067,84146.0,84145.0,0.37805371]
[1744899477117,0.20804067,84146.0,84145.0,0.1694438]
[1744899477423,0.08917827,84146.0,84145.0,0.1694438]
[1744899477814,0.20804067,84146.0,84145.0,0.1694438]
[1744899479123,0.20704067,84146.0,84145.0,0.1654438]
[1744899479307,0.20704067,84146.0,84145.0,0.1694438]
[1744899479308,0.20804067,84146.0,84145.0,0.1694438]
[1744899479714,0.20804067,84146.0,84145.0,0.00408]
[1744899480017,0.20804067,84146.0,84145.0,0.004]
[1744899480213,0.20704067,84146.0,84145.0,8e-05]
[1744899480417,0.20804067,84146.0,84145.0,0.1229438]
[1744899480619,0.21804067,84146.0,84145.0,0.1229438]
[1744899480814,0.21804067,84146.0,84145.0,0.1219438]
[1744899481114,0.57884067,84146.0,84145.0,0.1219438]
[1744899482320,0.21804067,84146.0,84145.0,0.1219438]
[1744899482522,0.21804067,84146.0,84145.0,0.1651438]
[1744899483712,0.21804067,84146.0,84145.0,0.00308]
[1744899483929,0.21804067,84146.0,84145.0,0.003]
[1744899484228,0.21804067,84146.0,84145.0,0.1219438]
[1744899484726,0.21804067,84146.0,84145.0,0.00308]
[1744899487922,0.21804067,84146.0,84121.0,0.00511165]
[1744899487923,0.0594361,84139.0,84121.0,0.00511165]
[1744899488113,0.1188963,84122.0,84121.0,0.00511165]
[1744899488318,0.4996963,84122.0,84121.0,0.12400935]
[1744899488917,0.5862963,84122.0,84121.0,0.00511165]
[1744899489122,0.5862963,84122.0,84121.0,0.12408935]
[1744899489427,0.5862963,84122.0,84121.0,0.00519165]
[1744899489627,0.5872963,84122.0,84121.0,0.12508935]
[1744899489924,0.5872963,84122.0,84121.0,0.00619165]
[1744899490121,0.4684,84122.0,84112.0,0.24156319]
[1744899490315,0.479709,84113.0,84112.0,0.24156319]
[1744899490521,0.0594594,84107.0,84100.0,0.1]
[1744899490716,0.479726,84101.0,84100.0,0.1]
[1744899490918,1.110526,84101.0,84100.0,0.1]
[1744899491128,1.110526,84101.0,84100.0,0.10008]
[1744899491523,1.199126,84101.0,84100.0,0.10008]
[1744899492318,1.0802,84101.0,84100.0,0.2190074]
[1744899492833,0.8102,84101.0,84100.0,0.42661731]
[1744899493329,0.8112,84101.0,84100.0,0.42661731]
[1744899494231,0.8312,84101.0,84100.0,0.42661731]
[1744899494824,0.8312,84101.0,84100.0,0.30768991]
[1744899495124,0.8312,84101.0,84100.0,0.10008]
[1744899495431,0.8312,84101.0,84100.0,0.2189274]
[1744899495631,0.8312,84101.0,84100.0,0.2190074]
[1744899496329,0.950126,84101.0,84100.0,0.10008]
[1744899496632,0.949126,84101.0,84100.0,0.10008]
[1744899496934,0.950126,84101.0,84100.0,0.10008]
[1744899497122,0.950126,84101.0,84100.0,0.2190074]
[1744899497434,0.950126,84101.0,84100.0,0.10008]
[1744899497933,0.950126,84101.0,84100.0,0.2190074]
[1744899498232,0.949126,84101.0,84100.0,0.2190074]
[1744899498432,0.950126,84101.0,84100.0,0.2190074]
[1744899498629,0.950126,84101.0,84100.0,0.10008]
[1744899498828,0.949126,84101.0,84100.0,0.10008]
[1744899499031,0.950126,84101.0,84100.0,0.1]
[1744899499231,0.950126,84101.0,84100.0,0.10008]
[1744899500732,0.1189331,84096.0,84095.0,0.00511323]
[1744899500929,0.1289331,84096.0,84095.0,0.00511323]
[1744899501936,0.0966,84096.0,84081.0,0.178427]
[1744899502125,0.1189543,84082.0,84081.0,0.178427]
[1744899502526,0.1189543,84082.0,84081.0,0.38603691]
[1744899502736,0.1189543,84082.0,84081.0,0.38611691]
[1744899503226,0.2047515,84083.0,84082.0,0.1189529]
[1744899503426,0.2047515,84083.0,84082.0,0.37106281]
[1744899503427,0.1614515,84083.0,84082.0,0.37106281]
[1744899503937,0.0425,84083.0,84082.0,0.37993027]
[1744899504139,0.0425,84083.0,84082.0,0.42493027]
[1744899504639,0.3608,84084.0,84083.0,0.1179515]
[1744899504827,0.47975,84084.0,84083.0,0.41526141]
[1744899505237,0.47975,84084.0,84083.0,0.41426141]
[1744899505928,0.52625,84084.0,84083.0,0.41426141]
[1744899506129,0.52625,84084.0,84083.0,0.36906141]
[1744899506437,0.56995,84084.0,84083.0,0.36906141]
[1744899506838,0.48075,84084.0,84083.0,0.36906141]
[1744899507041,0.48075,84084.0,84083.0,0.41426141]
[1744899507429,0.52625,84084.0,84083.0,0.36906141]
[1744899507628,0.56995,84084.0,84083.0,0.36906141]
[1744899508036,0.52625,84084.0,84083.0,0.36906141]
[1744899508231,0.3618,84084.0,84083.0,0.41156141]
[1744899508642,0.48075,84084.0,84083.0,0.41156141]
[1744899509139,0.52575,84084.0,84083.0,0.41156141]
[1744899509334,0.56975,84084.0,84083.0,0.41156141]
[1744899509941,0.52575,84084.0,84083.0,0.41156141]
[1744899510142,0.48075,84084.0,84083.0,0.41156141]
[1744899510531,0.3618,84084.0,84083.0,0.41156141]
[1744899510927,0.3608,84084.0,84083.0,0.41056141]
[1744899511129,0.48075,84084.0,84083.0,0.36906141]
[1744899511542,0.56655,84084.0,84083.0,0.36906141]
[1744899511747,0.56655,84084.0,84083.0,0.37014141]
[1744899512742,0.56655,84084.0,84083.0,0.36914141]
[1744899512934,0.56655,84084.0,84083.0,0.37014141]
[1744899513135,0.56655,84084.0,84083.0,0.1625315]
[1744899513335,0.56655,84084.0,84083.0,0.04558]
[1744899514040,0.56655,84084.0,84083.0,0.0455]
[1744899514241,0.56655,84084.0,84072.0,0.1455833]
[1744899514242,0.1189656,84073.0,84072.0,0.1455833]
[1744899514440,0.4797656,84073.0,84072.0,0.1455833]
[1744899514642,0.4797656,84073.0,84072.0,0.35319321]
[1744899514835,0.4797656,84073.0,84072.0,0.35327321]
[1744899515037,0.4797656,84073.0,84072.0,8e-05]
[1744899515236,0.4797656,84073.0,84069.0,0.12408612]
[1744899515237,0.1189699,84070.0,84069.0,0.12408612]
[1744899515642,0.1189699,84070.0,84069.0,0.12416612]
[1744899515940,0.1632684,84071.0,84070.0,0.1189699]
[1744899516147,0.1632684,84071.0,84070.0,0.32657981]
[1744899517145,0.1189699,84070.0,84069.0,0.12416562]
[1744899517335,0.1189812,84062.0,84054.0,0.0594959]
[1744899517539,0.1189939,84053.0,84052.0,0.11919163]
[1744899517736,0.0594959,84055.0,84054.0,0.1189925]
[1744899517939,0.0594938,84058.0,84057.0,0.1189883]
[1744899518143,0.00017838,84063.0,84059.0,0.0594923]
[1744899518461,0.00017838,84063.0,84062.0,0.1189812]
[1744899518643,0.00017838,84063.0,84062.0,0.32659111]
[1744899518842,0.00017838,84063.0,84062.0,0.32559111]
[1744899519035,0.00017838,84063.0,84062.0,0.40929111]
[1744899519439,0.00117838,84063.0,84062.0,0.40929111]
[1744899520643,0.178432,84084.0,84083.0,0.1189472]
[1744899520948,0.0594756,84084.0,84083.0,0.1179472]
[1744899521145,0.0594756,84084.0,84083.0,0.32555711]
[1744899521534,0.11896,84077.0,84076.0,0.3598]
[1744899521740,0.11896,84077.0,84076.0,0.4787614]
[1744899522040,0.11896,84077.0,84076.0,0.1190414]
[1744899522445,0.16156,84077.0,84076.0,0.36855131]
[1744899523459,0.0426,84077.0,84076.0,0.36855131]
[1744899523637,0.16156,84077.0,84076.0,0.36855131]
[1744899524043,0.16256,84077.0,84076.0,0.37155131]
[1744899524348,0.16256,84077.0,84076.0,0.37147131]
[1744899524551,0.16156,84077.0,84076.0,0.36855131]
[1744899524752,0.16256,84077.0,84076.0,0.37155131]
[1744899525046,0.16156,84077.0,84076.0,0.36855131]
[1744899525247,0.16256,84077.0,84076.0,0.37255131]
[1744899525643,0.16156,84077.0,84076.0,0.36855131]
[1744899525839,0.16256,84077.0,84076.0,0.37255131]
[1744899527744,0.16256,84077.0,84076.0,0.37155131]
[1744899528838,0.16256,84077.0,84076.0,0.37147131]
[1744899529038,0.16256,84077.0,84076.0,0.37155131]
[1744899529846,0.0436,84077.0,84076.0,0.45545131]
[1744899530251,0.59974558,84092.0,84089.0,0.0594708]
[1744899530446,0.65921498,84092.0,84091.0,0.1189401]
[1744899531051,0.65921498,84092.0,84091.0,0.1179401]
[1744899531645,0.70301498,84092.0,84091.0,0.1179401]
[1744899531846,0.70401498,84092.0,84091.0,0.1219401]
[1744899532159,0.58507378,84092.0,84091.0,0.1219401]
[1744899532357,0.17873016,84109.0,84091.0,0.72981763]
[1744899532555,0.17873016,84109.0,84108.0,0.32652601]
[1744899532853,0.17873016,84109.0,84108.0,0.32552601]
[1744899533054,0.17873016,84109.0,84108.0,0.36862601]
[1744899533354,0.35405515,84109.0,84108.0,0.36862601]
[1744899533851,0.35405515,84109.0,84108.0,0.32552601]
[1744899534051,0.35405515,84109.0,84108.0,0.1179161]
[1744899534255,0.35405515,84109.0,84108.0,0.32552601]
[1744899534451,0.35405515,84109.0,84108.0,0.32460601]
[1744899535048,0.35505515,84109.0,84108.0,0.32860601]
[1744899535544,0.35405515,84109.0,84108.0,0.32460601]
[1744899535745,0.35505515,84109.0,84108.0,0.32960601]
[1744899536147,0.35505515,84109.0,84108.0,0.00508]
[1744899536359,0.35505515,84109.0,84108.0,0.01411267]
[1744899536555,0.35505515,84109.0,84108.0,0.005]
[1744899537257,0.2050147,84109.0,84108.0,0.1239961]
[1744899537659,0.2060147,84109.0,84108.0,0.1279961]
[1744899537851,0.0871,84109.0,84108.0,0.1279961]
[1744899538243,0.0851,84109.0,84108.0,0.1189961]
[1744899538447,0.0861,84109.0,84108.0,0.1229961]
[1744899538849,0.0861,84109.0,84108.0,0.33942972]
[1744899540862,0.0861,84109.0,84108.0,0.34242972]
[1744899541255,0.0447,84109.0,84108.0,0.70322972]
[1744899541559,0.0447,84109.0,84108.0,0.70422972]
[1744899542160,0.00017838,84117.0,84116.0,0.1189048]
[1744899542455,0.00017838,84117.0,84116.0,0.32651471]
[1744899542655,0.04107838,84117.0,84116.0,0.36751471]
[1744899542858,0.04107838,84117.0,84116.0,0.41011471]
[1744899543059,0.04107838,84117.0,84116.0,0.45191471]
[1744899543857,0.04207838,84117.0,84116.0,0.45691471]
[1744899544760,0.00117838,84117.0,84116.0,0.45691471]
[1744899544959,0.0433,84126.0,84123.0,0.1178949]
[1744899545266,0.0433,84126.0,84123.0,0.42910481]
[1744899545463,0.0405,84125.0,84123.0,0.42918481]
[1744899545652,0.0811,84125.0,84123.0,0.47118481]
[1744899545952,0.0483,84124.0,84123.0,0.47118481]
[1744899546153,0.0483,84124.0,84123.0,0.36758481]
[1744899546358,0.2076935,84124.0,84123.0,0.35428991]
[1744899546557,0.2076935,84124.0,84120.0,0.1036]
[1744899546558,0.148247,84124.0,84120.0,0.1036]
[1744899546865,0.118902,84118.0,84117.0,0.2226104]
[1744899547054,0.118902,84118.0,84117.0,0.2225024]
[1744899547254,0.118902,84118.0,84117.0,0.43019231]
[1744899547947,0.202702,84118.0,84117.0,0.43019231]
[1744899548855,0.202702,84118.0,84117.0,0.43419231]
[1744899549047,0.202702,84118.0,84117.0,0.21168991]
[1744899549251,0.1189232,84103.0,84100.0,0.00017838]
[1744899549458,0.118926,84101.0,84100.0,0.00017838]
[1744899549658,0.128926,84101.0,84100.0,0.00017838]
[1744899550049,0.212726,84101.0,84100.0,0.00025838]
[1744899550250,0.573526,84101.0,84100.0,0.00025838]
[1744899551055,0.573526,84101.0,84100.0,0.00425838]
[1744899551460,0.573526,84101.0,84100.0,0.00025838]
[1744899551669,0.573526,84101.0,84100.0,0.00425838]
[1744899552956,0.573526,84101.0,84100.0,0.00417838]
[1744899553261,0.573526,84101.0,84100.0,0.00425838]
[1744899553559,0.573526,84101.0,84100.0,0.00025838]
[1744899553765,0.574526,84101.0,84100.0,0.00425838]
[1744899554154,0.573526,84101.0,84100.0,0.00025838]
[1744899554351,0.574526,84101.0,84100.0,0.00425838]
[1744899554557,0.574526,84101.0,84088.0,0.0595799]
[1744899554558,0.118943,84089.0,84088.0,0.1190517]
[1744899554764,0.479743,84089.0,84088.0,0.1190517]
[1744899555069,0.479743,84089.0,84088.0,0.32663361]
[1744899555569,0.565943,84089.0,84088.0,0.32663361]
[1744899556266,0.565943,84089.0,84088.0,0.33537446]
[1744899556963,0.565943,84089.0,84088.0,0.22043076]
[1744899556964,0.566943,84089.0,84088.0,0.22043076]
[1744899557365,0.576943,84089.0,84088.0,0.33929516]
[1744899557565,0.576943,84089.0,84088.0,0.33937516]
[1744899558467,0.575943,84089.0,84088.0,0.33537516]
[1744899558667,0.576943,84089.0,84088.0,0.33837516]
[1744899561867,0.575943,84089.0,84088.0,0.33537516]
[1744899562067,0.576943,84089.0,84088.0,0.33837516]
[1744899563375,0.576943,84089.0,84088.0,0.38207516]
[1744899563978,0.575943,84089.0,84088.0,0.37907516]
[1744899564163,0.576943,84089.0,84088.0,0.38207516]
[1744899564365,0.0872,84089.0,84088.0,0.38207516]
[1744899564573,0.0436,84089.0,84088.0,0.47207516]
[1744899564873,0.0436,84089.0,84088.0,0.83287516]
[1744899565066,0.5391797,84106.0,84105.0,0.1189203]
[1744899565376,0.6086399,84106.0,84105.0,0.1179203]
[1744899566275,0.6086399,84106.0,84105.0,0.0427]
[1744899566577,0.6086399,84106.0,84105.0,0.1616203]
[1744899566778,0.6534399,84106.0,84105.0,0.1616203]
[1744899566978,0.6534399,84106.0,84105.0,0.1606203]
[1744899567170,0.4056,84106.0,84105.0,0.1606203]
[1744899567474,0.5255189,84106.0,84105.0,0.25330991]
[1744899567778,0.5255189,84106.0,84105.0,0.004]
[1744899567975,0.5703189,84106.0,84105.0,0.1229203]
[1744899568279,0.5703189,84106.0,84105.0,0.004]
[1744899568682,0.5713189,84106.0,84105.0,0.008]
[1744899568976,0.5713189,84106.0,84105.0,0.00808]
[1744899569881,0.5813189,84106.0,84105.0,0.008]
[1744899570181,0.118926,84101.0,84100.0,0.0594636]
[1744899570780,0.202226,84101.0,84100.0,0.0594636]
[1744899571277,0.203226,84101.0,84100.0,0.0634636]
[1744899571776,0.202226,84101.0,84100.0,0.0594636]
[1744899571976,0.202226,84101.0,84100.0,0.0634636]
[1744899571977,0.203226,84101.0,84100.0,0.0634636]
[1744899572377,0.203226,84101.0,84100.0,0.1059636]
[1744899572773,0.001,84101.0,84100.0,0.31357351]
[1744899572975,0.001,84101.0,84100.0,0.35777351]
[1744899573373,0.1189232,84103.0,84102.0,0.1189246]
[1744899573574,0.2638818,84105.0,84104.0,0.32653171]
[1744899573972,0.2638818,84105.0,84104.0,0.41223171]
[1744899574573,0.2638818,84105.0,84104.0,0.41123171]
[1744899574772,0.2638818,84105.0,84104.0,0.36703171]
[1744899575177,0.2638818,84105.0,84104.0,0.25018991]
[1744899575470,0.2638818,84105.0,84102.0,0.005]
[1744899575471,0.1189232,84103.0,84102.0,0.005]
[1744899575677,0.1289232,84103.0,84102.0,0.005]
[1744899575872,0.1743232,84103.0,84102.0,0.005]
[1744899576176,0.2165232,84103.0,84102.0,0.005]
[1744899576480,0.118926,84101.0,84100.0,0.1189272]
[1744899577080,0.206526,84101.0,84100.0,0.1189272]
[1744899577472,0.206526,84101.0,84100.0,0.1627272]
[1744899577665,0.206526,84101.0,84100.0,0.1657272]
[1744899578082,0.206526,84101.0,84100.0,0.0438]
[1744899578273,0.206526,84101.0,84100.0,0.0468]
[1744899578578,0.206526,84101.0,84100.0,0.1657274]
[1744899578979,0.01235565,86164.0,84100.0,0.1657274]
[1744899578980,0.00017838,84111.0,84105.0,0.1189203]
[1744899579172,0.4797189,84106.0,84105.0,0.32653021]
[1744899579579,0.4797189,84106.0,84105.0,0.41063021]
[1744899580781,0.4807189,84106.0,84105.0,0.41463021]
[1744899581181,0.5640189,84106.0,84105.0,0.41463021]
[1744899582382,0.4451,84106.0,84105.0,0.41463021]
[1744899583583,0.4441,84106.0,84105.0,0.41363021]
[1744899586285,0.4441,84106.0,84105.0,0.41063021]
[1744899586495,0.4441,84106.0,84105.0,0.41463021]
[1744899588385,0.3608,84106.0,84105.0,0.41463021]
[1744899588979,0.00017838,84111.0,84108.0,0.059458]
[1744899589280,0.00017838,84111.0,84110.0,0.32652321]
[1744899589674,0.00017838,84111.0,84110.0,0.40942321]
[1744899590083,0.04147838,84111.0,84110.0,0.40942321]
[1744899590476,0.04147838,84111.0,84110.0,0.41242321]
[1744899592579,0.00017838,84111.0,84110.0,0.41242321]
[1744899592978,0.086,84118.0,84110.0,0.41242321]
[1744899592979,0.0594436,84129.0,84122.0,0.1188963]
[1744899593285,0.5236949,84123.0,84122.0,0.32650621]
[1744899593583,0.4048,84123.0,84122.0,0.32650621]
[1744899593785,0.5236949,84123.0,84122.0,0.32650621]
[1744899594179,0.5664949,84123.0,84122.0,0.36850621]
[1744899594370,0.4476,84123.0,84122.0,0.36850621]
[1744899594577,0.4476,84123.0,84122.0,0.37150621]
[1744899594780,0.4476,84123.0,84122.0,0.45710621]
[1744899594781,0.4036,84123.0,84122.0,0.45710621]
[1744899595281,0.5224949,84123.0,84122.0,0.45710621]
[1744899595485,0.5224949,84123.0,84122.0,0.37150621]
[1744899595780,0.5224949,84123.0,84122.0,0.21060991]
[1744899595987,0.5224949,84123.0,84122.0,0.32958621]
[1744899596193,0.5642949,84123.0,84122.0,0.32958621]
[1744899596786,0.5642949,84123.0,84122.0,0.1219763]
[1744899596986,0.5642949,84123.0,84122.0,0.00308]
[1744899597382,0.5642949,84123.0,84122.0,0.1219763]
[1744899597886,0.4454,84123.0,84122.0,0.32958621]
[1744899598190,0.4454,84123.0,84122.0,0.45958621]
[1744899598881,0.5642949,84123.0,84122.0,0.45958621]
[1744899599486,0.3608,84123.0,84122.0,0.41498621]
[1744899599677,0.5625949,84123.0,84122.0,0.41198621]
[1744899599987,0.5625949,84123.0,84122.0,0.41298621]
[1744899600578,0.5625949,84123.0,84122.0,0.00108]
[1744899600779,0.5625949,84123.0,84122.0,0.1199763]
[1744899600979,0.5625949,84123.0,84122.0,0.1198963]
[1744899601178,0.5625949,84123.0,84122.0,0.1199763]
[1744899601379,0.5625949,84123.0,84122.0,0.37158621]
[1744899601991,0.5625949,84123.0,84122.0,0.00108]
[1744899602291,0.5725949,84123.0,84122.0,0.1199763]
[1744899602786,0.5725949,84123.0,84122.0,0.1189763]
[1744899602985,0.5725949,84123.0,84122.0,0.1199763]
[1744899603187,0.4537,84123.0,84122.0,0.1199763]
[1744899603590,0.4437,84123.0,84122.0,0.1199763]
[1744899604885,0.4437,84123.0,84122.0,0.37238621]
[1744899606094,0.0829,84123.0,84122.0,0.37238621]
[1744899609386,0.09497593,84124.0,84123.0,0.1188949]
[1744899609588,0.0832,84130.0,84129.0,0.1188864]
[1744899609790,0.0415,84138.0,84137.0,0.1188751]
[1744899609991,0.005,84150.0,84143.0,0.0594329]
[1744899610191,0.0832,84146.0,84145.0,0.0594319]
[1744899610382,0.0832,84146.0,84145.0,0.07375516]
[1744899610578,0.0832,84146.0,84145.0,0.28136507]
[1744899611188,0.0832,84146.0,84145.0,0.26704181]
[1744899611385,0.0832,84146.0,84145.0,0.27593849]
[1744899611787,0.0832,84146.0,84145.0,0.37373849]
[1744899612885,0.0832,84146.0,84145.0,0.37473849]
[1744899613793,0.005,84150.0,84149.0,0.1188582]
[1744899614095,0.005,84150.0,84149.0,0.32646811]
[1744899614096,0.0468,84150.0,84149.0,0.32646811]
[1744899614280,0.005,84150.0,84149.0,0.32646811]
[1744899614797,0.17873016,84152.0,84151.0,0.1188553]
[1744899614990,0.00017827,84154.0,84153.0,0.1188525]
[1744899615190,0.00017827,84154.0,84153.0,0.32646241]
[1744899616495,0.00017827,84154.0,84153.0,0.32746241]
[1744899617798,0.04177827,84154.0,84153.0,0.32746241]
[1744899617999,0.0442,84155.0,84154.0,0.1188511]
[1744899618201,0.0857,84162.0,84161.0,0.1188412]
[1744899618495,0.0857,84162.0,84161.0,0.2166012]
[1744899618698,0.0857,84162.0,84161.0,0.42421111]
[1744899619494,0.0957,84162.0,84161.0,0.42521111]
[1744899620898,0.0957,84162.0,84161.0,0.09876]
[1744899621199,0.0957,84162.0,84161.0,0.2176012]
[1744899621591,0.0957,84162.0,84161.0,0.2609012]
[1744899621991,0.0957,84162.0,84161.0,0.46851111]
[1744899623000,0.0957,84162.0,84161.0,0.30636991]
[1744899623199,0.1188624,84146.0,84134.0,0.3608]
[1744899623399,0.1188638,84145.0,84144.0,0.3609458]
[1744899623694,0.1425,84145.0,84144.0,0.479811]
[1744899623897,0.1425,84145.0,84144.0,0.4796652]
[1744899624199,0.2613638,84145.0,84144.0,0.36088]
[1744899624396,0.1425,84145.0,84144.0,0.4797452]
[1744899624901,0.6221638,84145.0,84144.0,0.00871711]
[1744899625198,0.1188723,84139.0,84138.0,0.1188736]
[1744899625386,0.1288723,84139.0,84138.0,0.1188736]
[1744899625587,0.01,84139.0,84137.0,0.00028627]
[1744899625794,0.2088737,84138.0,84137.0,0.00905064]
[1744899628093,0.2188737,84138.0,84137.0,0.11913337]
[1744899629700,0.2188737,84138.0,84137.0,0.12818218]
[1744899630088,0.2188737,84138.0,84137.0,0.12918218]
[1744899631896,0.5796737,84138.0,84137.0,0.00117827]
[1744899632097,0.1188963,84122.0,84107.0,0.09776]
[1744899632301,1.0904963,84122.0,84121.0,0.00530848]
[1744899632499,1.2203963,84122.0,84121.0,0.00511165]
[1744899633300,1.2203963,84122.0,84121.0,0.00519165]
[1744899634901,1.2203963,84122.0,84121.0,0.00511165]
[1744899635106,0.1189062,84115.0,84114.0,0.000108]
[1744899635307,0.1189062,84115.0,84108.0,0.0001458]
[1744899635308,0.0594555,84112.0,84108.0,0.0001458]
[1744899635498,0.1189203,84105.0,84104.0,0.18078644]
[1744899635698,0.1389203,84105.0,84104.0,0.18078644]
[1744899635897,0.1389203,84105.0,84104.0,0.30882331]
[1744899635898,0.02,84105.0,84104.0,0.30882331]
[1744899636099,0.1323,84106.0,84104.0,0.51643322]
[1744899636305,0.0863,84105.0,84104.0,0.30882331]
[1744899636605,0.0863,84105.0,84104.0,0.39752331]
[1744899636805,0.2052203,84105.0,84104.0,0.60513322]
[1744899637005,0.0863,84105.0,84104.0,0.60513322]
[1744899637906,0.00017827,84113.0,84112.0,0.1189105]
[1744899638213,0.00017827,84113.0,84112.0,0.32652041]
[1744899638598,0.1188929,84125.0,84124.0,0.1188921]
[1744899638798,0.1736929,84125.0,84124.0,0.1188921]
[1744899639199,0.2165929,84125.0,84124.0,0.1188921]
[1744899640101,0.2165929,84125.0,84124.0,0.1626921]
[1744899641307,0.0877,84125.0,84124.0,0.37030201]
[1744899641707,0.0877,84125.0,84124.0,0.41700201]
[1744899641911,0.2065921,84125.0,84124.0,0.41700201]
[1744899643016,0.2065921,84125.0,84124.0,0.37030201]
[1744899645014,0.2065921,84125.0,84124.0,0.41440201]
[1744899646518,0.1783544,84119.0,84115.0,0.0594526]
[1744899646714,0.2073034,84118.0,84117.0,0.1189034]
[1744899646905,0.2073034,84118.0,84117.0,0.1651034]
[1744899647103,0.2073034,84118.0,84117.0,0.37271331]
[1744899647913,0.2073034,84118.0,84117.0,0.37241331]
[1744899648101,0.3373034,84118.0,84117.0,0.20760991]
[1744899648307,0.1189034,84117.0,84116.0,0.00125827]
[1744899648505,0.3989034,84117.0,84116.0,0.00117827]
[1744899648703,0.4855034,84117.0,84116.0,0.00117827]
[1744899649310,0.4855034,84117.0,84116.0,0.00025827]
[1744899652421,0.4855034,84117.0,84116.0,0.04595827]
[1744899659015,0.4855034,84117.0,84116.0,0.00025827]
[1744899659225,0.1189147,84109.0,84108.0,0.000108]
[1744899659524,0.1189161,84108.0,84107.0,0.0457]
[1744899659725,0.1189203,84105.0,84103.0,0.000108]
[1744899659925,0.1189218,84104.0,84103.0,0.1190309]
[1744899660122,0.2085218,84104.0,84103.0,0.1190309]
[1744899660314,0.2085218,84104.0,84103.0,0.32664081]
[1744899660516,0.2085218,84104.0,84103.0,0.37234081]
[1744899660826,0.0896,84104.0,84103.0,0.37234081]
[1744899661027,0.0896,84104.0,84103.0,0.41634081]
[1744899661426,0.3608,84111.0,84110.0,0.1189133]
[1744899661616,0.4232,84111.0,84110.0,0.1189133]
[1744899662123,0.5421119,84111.0,84110.0,0.1189133]
[1744899662920,0.5860119,84111.0,84110.0,0.1189133]
[1744899664712,0.5860119,84111.0,84110.0,0.1644133]
[1744899666927,0.1189203,84105.0,84104.0,0.00900065]
[1744899667124,0.1189218,84104.0,84103.0,0.1190312]
[1744899667319,0.2026218,84104.0,84103.0,0.1190312]
[1744899667521,0.2026218,84104.0,84103.0,0.32653311]
[1744899667720,0.2026218,84104.0,84103.0,0.32661311]
[1744899667930,0.2026218,84104.0,84103.0,0.36901311]
[1744899669024,0.5634218,84104.0,84103.0,0.25008991]
[1744899669229,0.1189274,84100.0,84099.0,0.000108]
[1744899669424,0.1189331,84096.0,84095.0,0.0052915]
[1744899669820,0.2035331,84096.0,84095.0,0.0052915]